Cogmind - Beta 15 @@@ ROGUE MODE // 2025.05.20 @ 17:17:05 Player: Windjigo Result: Destroyed by G-67 Veteran with Plasma Rifle Performance ------------- Evolutions (7) 3500 Regions Visited (11) 2200 Robots Destroyed (202) 1010 Value Destroyed (9847) 9847 Prototype IDs (17) 340 Alien Tech Used (4) 800 Bonus (2167) 2167 TOTAL SCORE: 19864 Bonus ------- High Alert Combat Kills 1201 Entered DSFs 500 Scanned by Researcher 500 Friendly Fire -34 Cogmind --------- Core Integrity 0/1300 Matter 300/300 Energy 100/100 System Corruption 18% Temperature Cool (12) Movement Core (700) Ox13 Location -3/Quarantine Parts ------- > --- POWER (2) -------- (None) > --- PROPULSION (4) --- (None) > --- UTILITY (11) ----- High-capacity Storage Unit Advanced Signal Interpreter Advanced Target Analyzer Advanced Target Analyzer Advanced Hacking Suite > --- WEAPON (4) ------- (None) > --- INVENTORY (20) --- Light Antimatter Reactor Light Antimatter Reactor Particle Reactor Advanced Heat Sink Advanced Heat Sink Large Storage Unit High-capacity Matter Pod (200) Advanced Point Defense System Relay Coupler [Grunt] (25) Mini Drone Bay (2/3) Advanced Remote Datajack Core Stripper Peak State ------------ > --- POWER ------------ Particle Reactor Improved Quantum Reactor > --- PROPULSION ------- Heavy Treads Improved Heavy Treads > --- UTILITY ---------- Advanced Heat Sink Experimental Cooling System High-capacity Storage Unit Advanced Sensor Array Advanced Signal Interpreter Advanced Target Analyzer Advanced Target Analyzer Advanced Target Analyzer Centrium Medium Armor Plating Advanced Hacking Suite High-powered Tractor Beam > --- WEAPON ----------- Quantum Rifle Multirail Core Stripper > --- INVENTORY -------- Light Antimatter Reactor Light Antimatter Reactor Light Antimatter Reactor Particle Reactor Light Particle Reactor Heavy Siege Treads Advanced Heat Sink Advanced Heat Sink Large Storage Unit Advanced Sensor Array Advanced Point Defense System Relay Coupler [Grunt] Mini Drone Bay Gamma Rifle Smartbomb Launcher Advanced Remote Datajack [Rating: 167] Favorites ----------- Power Hybrid Fission Core Engine Improved Ion Engine Power Core Hybrid Fission Core Reactor Light Antimatter Reactor Propulsion Armored Medium Treads Treads Armored Medium Treads Leg Improved Aluminum Leg Wheel Wheel Hover Unit Improved Hover Unit Flight Unit Improved Flight Unit Utility Large Storage Unit Device Improved Cooling System Storage Large Storage Unit Processor Advanced Signal Interpreter Hackware Advanced Hacking Suite Protection Improved Heavy Armor Plating Artifact Phase Redirector Weapon Hypervelocity Mass Driver Energy Gun Heavy Laser Energy Cannon Matter Neutralizer Ballistic Gun Heavy Machine Gun Ballistic Cannon Hypervelocity Mass Driver Launcher Heavy Missile Launcher Special Weapon Mining Laser Impact Weapon Core Stripper Slashing Weapon Mining Claw Build | -11 -10 -9 -9 -8 -7 -6 -6 -5 -4 -3 -3 ------- Run | Yrd Mat Mat Min Mat Fac Fac DSF Fac Fac Res Qua Slots Evolved 14 | . . 2 . 2 2 2 . 2 2 2 . Power 1 | . . . . . 1 . . . . . . Propulsion 2 | . . 1 . 1 . . . . . . . Utility 9 | . . 1 . 1 1 1 . 2 1 2 . Weapon 2 | . . . . . . 1 . . 1 . . Parts Attached 171 | 7 21 19 4 16 17 2 18 17 23 12 15 Power 28 | 1 3 3 . 3 3 . 6 . 4 4 1 Engine 13 | 1 3 3 . 1 2 . 3 . . . . Core 8 | . . . . 2 1 . 3 . 2 . . Reactor 7 | . . . . . . . . . 2 4 1 Propulsion 36 | 2 9 4 1 6 5 . 5 1 2 . 1 Treads 19 | . 1 3 1 . 5 . 5 1 2 . 1 Leg 2 | . 2 . . . . . . . . . . Wheel 6 | 2 4 . . . . . . . . . . Hover 6 | . . . . 6 . . . . . . . Flight 3 | . 2 1 . . . . . . . . . Utility 62 | 2 4 6 1 4 6 2 5 9 10 4 9 Device 29 | 1 1 2 1 3 1 . 3 6 6 . 5 Storage 7 | 1 3 . . . 1 . . . 1 1 . Processor 7 | . . 1 . . 1 . . . 2 1 2 Hackware 3 | . . . . . . . . 2 . 1 . Protection 15 | . . 3 . 1 3 2 2 1 1 1 1 Artifact 1 | . . . . . . . . . . . 1 Weapon 45 | 2 5 6 2 3 3 . 2 7 7 4 4 Energy Gun 12 | . 2 4 . 1 1 . . . 1 2 1 Energy Cannon 10 | . 1 2 1 . . . 1 3 1 1 . Ballistic Gun 8 | 2 1 . . . 2 . . . 1 1 1 Ballistic Cannon 7 | . . . . . . . 1 3 3 . . Launcher 2 | . . . 1 . . . . . 1 . . Special Weapon 3 | . 1 . . . . . . 1 . . 1 Impact Weapon 2 | . . . . 1 . . . . . . 1 Slashing Weapon 1 | . . . . 1 . . . . . . . Piercing Weapon . | . . . . . . . . . . . . Special Melee Weapon . | . . . . . . . . . . . . Unidentified Prototypes 13 | . 1 2 . . . . . . 1 1 8 Corrupted Parts 3 | . . . . . . . . 1 . . 2 System Corruption 10 | . . . . . . . . 5 . . 5 Parts Lost 61 | . 4 8 . 1 5 . 5 . 5 8 25 Power 9 | . 1 1 . . . . 1 . 1 . 5 Propulsion 17 | . 3 2 . 1 4 . 2 . . . 5 Utility 21 | . . 3 . . . . 2 . 3 5 8 Weapon 14 | . . 2 . . 1 . . . 1 3 7 Highest Loss Streak 10 | . 2 6 . 1 3 . 4 . 2 4 10 To Critical Strikes . | . . . . . . . . . . . . Average Backups 13 | 3 13 14 15 14 11 11 13 14 11 12 14 Power 2 | . 1 2 2 2 1 2 3 2 2 2 4 Propulsion 2 | 1 3 3 5 3 . . 1 2 2 2 1 Utility 3 | . 2 3 3 4 5 6 5 3 2 3 6 Weapon 3 | 1 4 4 4 3 2 1 1 3 2 2 1 Tool/Special . | . . . . . . . . . . . . Unused Backups 42 | . 3 5 3 8 3 . 4 7 3 1 5 Power 7 | . . 2 1 1 . . 2 . . . 1 Propulsion 5 | . 2 . . 1 1 . . 1 . . . Utility 13 | . . 1 1 1 1 . 1 2 2 1 3 Weapon 13 | . 1 2 1 4 1 . . 3 1 . . Tool/Special 4 | . . . . 1 . . 1 1 . . 1 Average Slot Usage (%) 89 | . 99 87 100 92 91 89 89 84 85 89 79 Engine 3 | . 13 10 11 . 8 6 3 . . . . Core 5 | . . . . 8 5 6 8 11 8 4 1 Reactor 1 | . . . . . . . . . 1 4 7 Treads 14 | . 3 15 33 . 18 26 25 19 15 14 9 Wheel 4 | . 23 7 . . . . . . . . . Hover 2 | . . . . 35 7 . . . . . . Device 17 | . 14 10 11 19 19 13 15 15 20 20 19 Storage 7 | . 14 11 11 9 7 6 6 5 5 4 4 Processor 2 | . . . . . 1 . . . 3 4 13 Hackware 3 | . . . . . . . . 2 5 8 4 Protection 5 | . . 8 11 1 5 9 8 9 4 5 3 Energy Gun 3 | . 6 6 . 3 1 13 7 2 . 1 4 Energy Cannon 5 | . 6 10 20 9 4 . 1 4 4 2 . Ballistic Gun 3 | . 10 2 . . 6 6 4 . . 2 2 Ballistic Cannon 5 | . . . . . . . 1 8 14 10 . Peak Build Rating 167 | 7 12 26 29 36 44 52 77 100 121 125 167 Average Rating 75 | 4 9 18 27 30 40 49 64 93 115 122 136 On Entrance 50 | . 7 10 25 29 36 44 52 77 100 113 115 Naked Turns . | . . . . . . . . . . . . Heaviest Build 132 | 14 33 48 52 45 74 79 83 109 127 132 127 Greatest Support 145 | 20 26 66 66 38 93 84 108 124 132 132 145 Greatest Overweight (x) 23 | 1 3 10 . 1 2 . 3 . . . 23 Average Overweight (x) . | . 1 . . . . . . . . . . Largest Inventory Capacity 20 | 8 15 15 15 15 15 15 15 15 15 20 20 Average Capacity 15 | 7 14 15 15 15 13 15 15 15 15 16 20 Most Carried 20 | 7 15 15 15 15 15 14 15 15 15 20 20 Average Carried 14 | 3 13 14 14 14 12 12 14 14 14 15 16 Final Capacity 20 | 8 15 15 15 15 15 15 15 15 15 20 20 Final Carried 20 | 6 15 15 15 15 15 12 15 15 15 20 13 Class Distribution -------------------- 31% | Tank 30% | Mutant 14% | Scavenger-Tank 11% | Scavenger-Mutant 8% | Hacker-Tank Dominant Class ---------------- Mutant | -10/Materials Mutant | -9/Materials Mutant | -9/Mines Mutant | -8/Materials Mutant | -7/Factory Mutant | -6/Factory Tank | -6/DSF Tank | -5/Factory Tank | -4/Factory Scavenger-Tank | -3/Research Scavenger-Mutant | -3/Quarantine Resources | -11 -10 -9 -9 -8 -7 -6 -6 -5 -4 -3 -3 ----------- Run | Yrd Mat Mat Min Mat Fac Fac DSF Fac Fac Res Qua Matter Collected 7104 | 268 542 386 126 213 365 . 262 1097 1547 1314 984 Remotely 2282 | . . . . . . . . . 339 1114 829 Salvage Created 9117 | 122 433 844 229 418 572 . 360 911 1911 2039 1278 Parts 412 | 8 20 42 19 16 30 . 14 39 56 107 61 Haulers Intercepted 6 | . 2 2 . 2 . . . . . . . Recyclers Shooed 8 | . . . . . . . . . 2 2 4 Parts Field Recycled . | . . . . . . . . . . . . Retrieved Matter . | . . . . . . . . . . . . Parts Self-Destructed . | . . . . . . . . . . . . Prevented . | . . . . . . . . . . . . Kills | -11 -10 -9 -9 -8 -7 -6 -6 -5 -4 -3 -3 ------- Run | Yrd Mat Mat Min Mat Fac Fac DSF Fac Fac Res Qua Combat Hostiles Destroyed 165 | . 5 17 10 5 12 . 8 23 35 30 20 Melee 2 | . . . . 1 . . . . . 1 . Guns 44 | . 5 11 . . 8 . 4 . . 9 7 Cannons 87 | . . 6 7 4 4 . . 20 26 20 . AOE 29 | . . . 3 . . . 4 2 7 . 13 Classes Destroyed 19 | 2 5 4 . . 1 . 4 1 . . 2 Worker 9 | . 4 1 . . . . . . . 1 3 Builder 2 | . 1 . . . . . . . . . 1 Tunneler 1 | 1 . . . . . . . . . . . Hauler 6 | . 2 2 . 2 . . . . . . . Recycler 8 | 1 . . . . . . . . 3 1 3 Operator 2 | . . 1 . . . . . 1 . . . Watcher 7 | . 1 2 . 1 . . . 1 1 1 . Swarmer 35 | . . 4 5 . 3 . . 4 8 6 5 Grunt 63 | . 5 8 5 4 5 . 3 10 9 11 3 Brawler 3 | . . . . . 1 . . . . 2 . Duelist 1 | . . 1 . . . . . . . . . Researcher 2 | . . . . . . . . . . . 2 Sentry 15 | . . 4 . 1 3 . . 2 2 3 . Specialist 5 | . . . . . . . 2 . . . 3 Hunter 15 | . . . . . . . 1 . 8 2 4 Programmer 25 | . . . . . . . 1 6 8 6 4 Heavy 1 | . . . . . . . 1 . . . . Behemoth 1 | . . . . . . . . 1 . . . Alpha 7 1 | . . . . . . . . . . . 1 Best Kill Streak 11 | 2 3 4 3 3 5 . 3 8 7 8 11 Combat Bots Only 9 | . 2 4 3 3 5 . 3 8 6 7 9 Max Kills in Single Turn 3 | 1 1 1 2 1 1 . 2 2 3 1 3 Gunslinging . | . . . . . . . . . . . . Exploded 3 | . . . 2 . . . 2 2 3 . 3 Melee 1 | . . . . 1 . . . . . 1 . Uniques/NPCs Destroyed . | . . . . . . . . . . . . Combat | -11 -10 -9 -9 -8 -7 -6 -6 -5 -4 -3 -3 -------- Run | Yrd Mat Mat Min Mat Fac Fac DSF Fac Fac Res Qua Hostile Shots Fired 1357 | . 50 118 39 26 151 . 63 122 202 154 432 Missed 370 | . 9 27 12 7 36 . 24 33 41 31 150 Hits 987 | . 41 91 27 19 115 . 39 89 161 123 282 Melee 24 | . . 4 . . 4 . . . . 2 14 Projectile 963 | . 41 87 27 19 111 . 39 89 161 121 268 Critical Strikes 40 | . . . 1 . 2 . 3 2 17 3 12 Part Disruptions 3 | . . . . . . . 2 . . . 1 Damage Taken 15569 | . 609 1099 195 290 1342 . 909 1058 2430 2715 4922 Core 1935 | . 128 232 28 80 116 . . 46 59 185 1061 Absorbed by Shields 1250 | . . . . . . . . 698 552 . . Reduced by Siege Mode 435 | . . . . . . . . 5 131 176 123 Redirected to Core 190 | . . . . . . . . . . . 190 Ignored by Resistances 144 | . . 21 44 . . . . 79 . . . Regen/Repaired (Parts) 542 | . . . . . . . . . 542 . . Core Remaining (%) 80 | 100 48 . 35 85 83 . 100 95 94 . . Volleys Fired 508 | 6 82 67 14 30 39 . 16 60 69 52 73 Largest 4 | 2 2 2 2 2 2 . 3 3 4 4 4 Hottest 299 | 40 160 165 143 149 108 . 177 199 273 299 299 Shots Fired 1167 | 12 131 124 28 35 77 . 42 170 209 206 133 Gun 455 | 12 96 80 . 5 43 . 38 16 . 74 91 Cannon 651 | . 28 38 24 30 34 . . 151 205 132 9 Launcher 37 | . . . 4 . . . 4 1 4 . 24 Special 24 | . 7 6 . . . . . 2 . . 9 Kinetic 598 | 12 72 29 . . 38 . 17 96 160 141 33 Thermal 432 | . 59 76 13 33 39 . 21 55 44 25 67 Explosive 37 | . . . 4 . . . 4 1 4 . 24 Electromagnetic 98 | . . 19 11 2 . . . 16 1 40 9 Robot Hit Streak 29 | 4 17 20 10 13 12 . 9 18 29 22 17 Robot Miss Streak 7 | 2 6 5 2 2 2 . 7 4 4 4 5 Penetration Max 1 | . . . . . . . . 1 1 1 . Secondary Targets 3 | . . 2 . . . . 1 . . . . Max Gunslinging Chain 1 | . . 1 . . . . 1 . . . . Shots Hit Robots 766 | 8 74 78 21 25 51 . 37 129 125 136 82 Core Hits 387 | 4 22 29 12 13 23 . 44 44 46 64 86 Critical Kills 45 | . . . . . . . . . 25 18 2 Critical Parts Destroyed 66 | . . . . . . . . . 46 18 2 Critical Strikes 126 | . . 2 . . 1 . 1 4 71 42 5 Burn 4 | . . 2 . . 1 . 1 . . . . Meltdown 2 | . . . . . . . . . 2 . . Destroy 113 | . . . . . . . . . 69 40 4 Blast 4 | . . . . . . . . 4 . . . Corrupt 3 | . . . . . . . . . . 2 1 Melee Attacks 2 | . . . . 2 . . . . . . . Impact . | . . . . . . . . . . . . Slashing 2 | . . . . 2 . . . . . . . Piercing . | . . . . . . . . . . . . Sneak Attacks . | . . . . . . . . . . . . Combat Hostiles . | . . . . . . . . . . . . Follow-up Attacks . | . . . . . . . . . . . . Damage Inflicted 24337 | 80 989 1352 743 696 1155 . 1509 4384 3869 3516 6044 Guns 6114 | 80 649 791 . 18 583 . 694 265 . 1305 1729 Cannons 11811 | . 244 561 473 591 572 . . 3866 3127 2193 184 Explosions 6208 | . . . 270 62 . . 815 253 730 . 4078 Melee 25 | . . . . 25 . . . . . . . Ramming 30 | . . . . . . . . . 12 18 . Kinetic 8880 | 80 426 160 . . 525 . 332 2427 2316 1927 687 Thermal 6946 | . 563 775 254 631 630 . 362 1373 811 452 1095 Explosive 6086 | . . . 270 . . . 815 193 730 . 4078 Electromagnetic 2370 | . . 417 219 40 . . . 391 . 1119 184 Impact . | . . . . . . . . . . . . Slashing 25 | . . . . 25 . . . . . . . Piercing . | . . . . . . . . . . . . Highest Corruption 18 | . 6 . . . 3 . 2 8 8 5 18 Average Corruption 5 | . 4 . . . 3 . 1 7 3 3 14 Corruption Purged . | . . . . . . . . . . . . Corruption Blocked . | . . . . . . . . . . . . Effects 158 | . 29 . . . 9 . 5 47 19 20 29 Message Errors 33 | . 5 . . . . . 4 11 6 2 5 Matter Fused 32 | . 11 . . . 1 . . 7 5 5 3 Heat Flow Errors 15 | . 2 . . . 1 . . 6 . 4 2 Energy Discharges 24 | . 3 . . . 2 . . 6 3 1 9 Parts Rejected 2 | . . . . . . . . 1 . . 1 Data Loss (minor) 19 | . 6 . . . 1 . . 6 2 2 2 Data Loss (major) 7 | . . . . . 3 . . 2 1 1 . Misfires 10 | . 2 . . . . . 1 3 2 1 1 Alerts 4 | . . . . . . . . 3 . 1 . Misdirections 3 | . . . . . . . . . . . 3 Weapon Failures 9 | . . . . . 1 . . 2 . 3 3 Overload Shots . | . . . . . . . . . . . . Overflow Damage 353 | . 1 45 . 18 4 . . 90 33 29 133 Projectiles 179 | . 1 45 . . 4 . . 67 33 29 . Explosions 174 | . . . . 18 . . . 23 . . 133 Melee . | . . . . . . . . . . . . Knockbacks 42 | . . . . . . . . 14 21 7 . Impact . | . . . . . . . . . . . . Kinetic 40 | . . . . . . . . 12 21 7 . Secondary 2 | . . . . . . . . 2 . . . Self-Inflicted Damage 164 | . . . . . . . . . 75 . 89 Shots 3 | . . . . . . . . . 1 . 2 Rammed 1 | . . . . . . . . . 1 . . Targets Rammed 2 | . . . . . . . . . 1 1 . Kicked . | . . . . . . . . . . . . Crushed 1 | . . . . . . . . . . 1 . Highest Temperature 382 | . 362 382 261 131 220 . 199 305 372 216 37 Average Temperature 98 | . 105 95 105 53 108 . 124 82 121 57 37 Received Heat Transfer 2779 | . 282 450 51 117 426 . 126 274 338 346 369 Effects 9 | . 3 5 . . . . . 1 . . . Energy Bleed 1 | . 1 . . . . . . . . . . Interference 7 | . 1 5 . . . . . 1 . . . Damage (minor) 1 | . 1 . . . . . . . . . . Siege Activations 36 | . . . . . . . . 6 14 11 5 Total Turns 845 | . . . . . . . . 109 266 365 105 Longest Duration 68 | . . . . . . . . 43 50 68 51 Martial Activations . | . . . . . . . . . . . . Shielding Activations . | . . . . . . . . . . . . Robots Disrupted 1 | . . . . . . . . 1 . . . Combat Hostiles 1 | . . . . . . . . 1 . . . Robots Corrupted 1 | . . 1 . . . . . . . . . Combat Hostiles . | . . . . . . . . . . . . Parts Fried 6 | . . 1 1 . . . . . . 3 1 Impact Corruptions . | . . . . . . . . . . . . Robots Melted 3 | . . . . . . . . 1 2 . . Combat Hostiles 3 | . . . . . . . . 1 2 . . Parts Melted 10 | . 1 2 . 1 2 . 1 1 1 . 1 Heat Transferred 11673 | . 1236 1813 500 1137 1285 . 805 1715 814 555 1813 Parts Sabotaged . | . . . . . . . . . . . . Parts Stolen . | . . . . . . . . . . . . Parts Stripped . | . . . . . . . . . . . . Power Chain Reactions 2 | . . . . 1 . . . 1 . . . Alert | -11 -10 -9 -9 -8 -7 -6 -6 -5 -4 -3 -3 ------- Run | Yrd Mat Mat Min Mat Fac Fac DSF Fac Fac Res Qua Maximum Alert Level 3 | . . . . . . . 1 2 3 3 3 Low Security (%) 52 | 100 100 100 100 100 100 100 49 46 24 . . Level 1 17 | . . . . . . . 50 35 32 . 59 Level 2 26 | . . . . . . . . 18 27 95 33 Level 3 3 | . . . . . . . . . 14 3 6 Level 4 . | . . . . . . . . . . . . Level 5 . | . . . . . . . . . . . . High Security . | . . . . . . . . . . . . Max Security . | . . . . . . . . . . . . Sterilizations 1 | . . . . . . . 1 . . . . Peak Influence 827 | 5 40 135 181 189 153 56 219 485 827 767 719 Initial 430 | . . . 9 54 . 56 32 114 225 430 420 Average 242 | . 5 37 85 63 63 55 160 225 386 522 410 Influence Increases 5932 | 10 202 468 291 271 293 . 237 1045 1379 1017 719 Destroy 0b10 Robot/C 3340 | . 100 340 200 100 240 . 160 460 700 600 440 Destroy 0b10 Robot/NC 180 | 10 40 30 . 15 . . 5 10 20 15 35 Destroy Leader 686 | . 26 88 30 26 50 . 40 92 142 132 60 Allied During Kill 4 | . . . . . . . . 4 . . . Successful Hack 52 | . 17 4 . 2 . . . 5 24 . . Disable Machine 465 | . 15 . . 45 . . . 165 105 15 120 Anti-Garrison Action 600 | . . . . . . . . 200 200 200 . Destroy Structure 410 | . 4 6 46 8 3 . 17 94 158 10 64 Partial Spotted 45 | . . . . 30 . . . . 15 . . Lose Combat Pursuer 150 | . . . 15 45 . . 15 15 15 45 . Influence Decreases 5313 | 10 202 443 175 412 178 69 64 803 1019 1091 847 Entered New Map 1235 | . . . 16 87 . 59 14 105 236 391 327 Time Decay 2877 | 10 192 246 159 165 158 10 . 504 583 580 270 Lost Part 540 | . 10 70 . 10 20 . 50 . 50 80 250 Lost Ally 60 | . . . . . . . . 20 . 40 . Purge Threat 601 | . . 127 . 150 . . . 174 150 . . Squads Dispatched 40 | . 1 2 1 2 5 . 2 5 8 8 6 Investigation 8 | . . . 1 1 2 . . 1 1 2 . Extermination 10 | . . . . . . . . 3 4 2 1 Reinforcement 12 | . 1 2 . 1 . . 2 . 3 . 3 Assault 4 | . . . . . . . . . . 2 2 Garrison 6 | . . . . . 3 . . 1 . 2 . Intercept . | . . . . . . . . . . . . Searches Triggered . | . . . . . . . . . . . . Construction Impeded 1 | . . . . . . . . . 1 . . Haulers Reinforced 1 | . . . . . . . . . 1 . . Active Scanning Responses . | . . . . . . . . . . . . Cargo Convoy Interrupts . | . . . . . . . . . . . . Stealth | -11 -10 -9 -9 -8 -7 -6 -6 -5 -4 -3 -3 --------- Run | Yrd Mat Mat Min Mat Fac Fac DSF Fac Fac Res Qua Distress Signals 7 | . 1 3 . 1 . . . . 2 . . Communications Jammed . | . . . . . . . . . . . . Distress Signals . | . . . . . . . . . . . . Times Spotted 244 | . 10 33 15 18 15 . 10 29 35 38 41 Peak Tracking Total 10 | . 3 8 4 7 5 . 3 4 6 5 10 Tactical Retreats 9 | . . . 1 2 . . 1 1 1 3 . Traps | -11 -10 -9 -9 -8 -7 -6 -6 -5 -4 -3 -3 ------- Run | Yrd Mat Mat Min Mat Fac Fac DSF Fac Fac Res Qua Traps Triggered 8 | . 3 1 . 1 . . 1 1 . 1 . Indirectly . | . . . . . . . . . . . . Trap Hack Attempts . | . . . . . . . . . . . . Triggered . | . . . . . . . . . . . . Disarmed . | . . . . . . . . . . . . Reprogrammed . | . . . . . . . . . . . . Reused . | . . . . . . . . . . . . Traps Extracted . | . . . . . . . . . . . . Installed . | . . . . . . . . . . . . Triggered . | . . . . . . . . . . . . Machines | -11 -10 -9 -9 -8 -7 -6 -6 -5 -4 -3 -3 ---------- Run | Yrd Mat Mat Min Mat Fac Fac DSF Fac Fac Res Qua Machines Disabled 32 | . 1 . . 3 . . . 11 7 1 9 Max in Single Turn 3 | . 1 . . 2 . . . 3 2 1 3 Garrison Access 3 | . . . . . . . . 1 1 1 . Machines Repaired . | . . . . . . . . . . . . Machines Dismantled . | . . . . . . . . . . . . Machines Sabotaged . | . . . . . . . . . . . . Overloaded Fab Kills . | . . . . . . . . . . . . Hacking | -11 -10 -9 -9 -8 -7 -6 -6 -5 -4 -3 -3 --------- Run | Yrd Mat Mat Min Mat Fac Fac DSF Fac Fac Res Qua Machines Accessed 43 | . 5 6 1 6 2 1 . 10 6 4 2 Terminals 30 | . 5 5 . 4 1 1 . 8 3 1 2 Fabricators . | . . . . . . . . . . . . Repair Stations 2 | . . . . . . . . . 1 1 . Recycling Units 5 | . . 1 . 1 . . . 1 1 1 . Scanalyzers 1 | . . . . 1 . . . . . . . Garrison Access 4 | . . . . . 1 . . 1 1 1 . Total Hacks 103 | . 20 16 1 15 5 1 . 18 16 9 2 Successful 40 | . 10 5 1 7 . 1 . 5 7 2 2 Failed 63 | . 10 11 . 8 5 . . 13 9 7 . Catastrophic 19 | . 1 1 . 1 1 . . 9 3 3 . Database Lockouts . | . . . . . . . . . . . . Manual 59 | . 13 14 . 10 2 . . 14 5 1 . Terminals 75 | . 20 14 . 10 2 1 . 14 9 3 2 Fabricators . | . . . . . . . . . . . . Repair Stations 5 | . . . . . . . . . 3 2 . Recycling Units 7 | . . 2 . 1 . . . 1 1 2 . Scanalyzers 4 | . . . . 4 . . . . . . . Garrison Access 11 | . . . . . 3 . . 3 3 2 . Terminal Hacks 19 | . 6 1 1 2 . 1 . 3 3 . 2 Record 2 | . . . . . . . . . 1 . 1 Robot Analysis 2 | . 2 . . . . . . . . . . Prototype ID Bank 2 | . 2 . . . . . . . . . . Open Door 2 | . . . 1 . . . . . . . 1 Open DSF 2 | . . . . . . 1 . 1 . . . Alert Level 2 | . 1 . . . . . . . 1 . . Unreport Threat 5 | . . 1 . 1 . . . 2 1 . . Recall Investigation 1 | . . . . 1 . . . . . . . Zone Layout 1 | . 1 . . . . . . . . . . Fabricator Hacks . | . . . . . . . . . . . . Repair Station Hacks 2 | . . . . . . . . . 2 . . Scan Component 1 | . . . . . . . . . 1 . . Repair 1 | . . . . . . . . . 1 . . Recycling Unit Hacks 5 | . . 1 . 1 . . . 1 1 1 . Report Inventory 4 | . . 1 . 1 . . . . 1 1 . Retrieve Components 1 | . . . . . . . . 1 . . . Scanalyzer 4 | . . . . 4 . . . . . . . Insert Component 2 | . . . . 2 . . . . . . . Analyze 2 | . . . . 2 . . . . . . . Garrison Access Hacks . | . . . . . . . . . . . . Unauthorized Hacks 10 | . 4 3 . . . . . 1 1 1 . Terminals 7 | . 4 3 . . . . . . . . . Botnet 7 | . 4 3 . . . . . . . . . Fabricators . | . . . . . . . . . . . . Repair Stations . | . . . . . . . . . . . . Recycling Units . | . . . . . . . . . . . . Scanalyzers . | . . . . . . . . . . . . Garrison Access 3 | . . . . . . . . 1 1 1 . Jam 3 | . . . . . . . . 1 1 1 . Data Cores Recovered 1 | . . . . . . . . 1 . . . Used . | . . . . . . . . . . . . Hacking Detections 36 | . 5 5 . 5 2 . . 9 5 4 1 Full Trace Events 4 | . . . . 1 2 . . . . 1 . Feedback Events . | . . . . . . . . . . . . Feedback Blocked . | . . . . . . . . . . . . Robot Schematics Acquired 2 | . . . . . . . . . . . 2 Robots Built . | . . . . . . . . . . . . Authchips . | . . . . . . . . . . . . Time . | . . . . . . . . . . . . Total Robot Build Rating . | . . . . . . . . . . . . Part Schematics Acquired 8 | . . . . 2 . . . . . . 6 Parts Built . | . . . . . . . . . . . . Authchips . | . . . . . . . . . . . . Time . | . . . . . . . . . . . . Total Part Build Rating . | . . . . . . . . . . . . Parts Repaired 1 | . . . . . . . . . 1 . . Time 25 | . . . . . . . . . 25 . . Parts Recycled . | . . . . . . . . . . . . Recycled Matter . | . . . . . . . . . . . . Retrieved Matter . | . . . . . . . . . . . . Retrieved Components 3 | . . . . . . . . 3 . . . Parts Scanalyzed 2 | . . . . 2 . . . . . . . Part Schematics Acquired 2 | . . . . 2 . . . . . . . Parts Damaged . | . . . . . . . . . . . . Bothacking | -11 -10 -9 -9 -8 -7 -6 -6 -5 -4 -3 -3 ------------ Run | Yrd Mat Mat Min Mat Fac Fac DSF Fac Fac Res Qua Used RIF Installer . | . . . . . . . . . . . . Robots Hacked . | . . . . . . . . . . . . Non-combat . | . . . . . . . . . . . . Combat . | . . . . . . . . . . . . Robot Hacks Applied . | . . . . . . . . . . . . Relay Couplers Released 4 | . . . . . . . . . . 4 . Programmers 4 | . . . . . . . . . . 4 . Fabnet Peak Effective % . | . . . . . . . . . . . . Robots Rewired 1 | . . . . . . . . 1 . . . Allies Hacked . | . . . . . . . . . . . . Hacks Repelled . | . . . . . . . . . . . . Allies | -11 -10 -9 -9 -8 -7 -6 -6 -5 -4 -3 -3 -------- Run | Yrd Mat Mat Min Mat Fac Fac DSF Fac Fac Res Qua Total Allies 1 | . . . . . . . . 1 . . . Largest Group 1 | . . . . . . . . 1 . . . Highest-Rated Group 49 | . . . . . . . . 49 . . . Highest-Rated Ally 49 | . . . . . . . . 49 . . . Initial Warlord ECA Mod 31 | . . . . . . . . 9 8 7 7 Total Orders 41 | . . . . . . . . 3 27 11 . ROAM 1 | . . . . . . . . . . 1 . EXPLORE 26 | . . . . . . . . 3 17 6 . RETURN 14 | . . . . . . . . . 10 4 . Ally Attacks 5 | . . . . . . . . 5 . . . Total Damage 176 | . . . . . . . . 176 . . . Kills . | . . . . . . . . . . . . Allies Corrupted . | . . . . . . . . . . . . Allies Melted . | . . . . . . . . . . . . Intel | -11 -10 -9 -9 -8 -7 -6 -6 -5 -4 -3 -3 ------- Run | Yrd Mat Mat Min Mat Fac Fac DSF Fac Fac Res Qua Active Infowar (turns) 5016 | 6 1374 494 . . . . . 116 683 1788 555 Optics 44 | . . 44 . . . . . . . . . Sensors 3893 | . 417 450 . . . . . . 683 1788 555 IFF 116 | . . . . . . . . 116 . . . Seismic 963 | 6 957 . . . . . . . . . . Robot Analysis Total 2 | . 2 . . . . . . . . . . Derelict Logs Recovered . | . . . . . . . . . . . . Drone Launches 30 | . . . . . . . . 3 16 11 . Drone Recoveries 26 | . . . . . . . . 3 16 7 . Exploration | -11 -10 -9 -9 -8 -7 -6 -6 -5 -4 -3 -3 ------------- Run | Yrd Mat Mat Min Mat Fac Fac DSF Fac Fac Res Qua Turns Passed 10093 | 79 1416 936 499 508 400 20 466 1585 1803 1788 593 Spaces Moved 4563 | 57 810 438 284 515 192 7 199 668 626 591 176 Core 18 | 13 . 4 . . . . . . . . 1 Treads 2880 | . 6 218 284 . 106 7 199 668 626 591 175 Legs . | . . . . . . . . . . . . Wheels 1054 | 44 804 206 . . . . . . . . . Hover 601 | . . . . 515 86 . . . . . . Flight 10 | . . 10 . . . . . . . . . Fastest Speed 48 | 50 80 95 145 48 48 152 152 166 166 170 160 Average Speed 136 | 77 109 127 145 49 110 152 181 167 169 170 173 Slowest Speed 1200 | 100 240 550 145 108 240 152 385 170 173 170 1200 Overloaded Moves . | . . . . . . . . . . . . Propulsion Burnouts . | . . . . . . . . . . . . Robots Hopped . | . . . . . . . . . . . . Potential Cave-ins . | . . . . . . . . . . . . Cave-ins Triggered . | . . . . . . . . . . . . Teleports 1 | . . . . . . . . . . . 1 Exploration Rate (%) 37 | 5 100 36 60 36 2 . 89 25 25 15 24 Regions Visited 11 Branch Regions 2 Pre-discovered Areas . | . . . . . . . . . . . . Known Exits Taken 3 | . . . . . . 1 . . 1 1 . Unknown Exits Taken 7 | 1 1 1 1 1 1 . . 1 . . . Scrap Searched 2 | . . . 2 . . . . . . . . Spaces Dug 22 | . . 6 . . . . . 2 14 . . Terrain Destroyed 287 | . . 6 66 8 . . 17 44 93 2 51 Melee . | . . . . . . . . . . . . Projectile 66 | . . 6 3 5 . . . 26 25 1 . AOE 219 | . . . 63 3 . . 17 18 67 . 51 Terrain Rammed . | . . . . . . . . . . . . Walls Destroyed . | . . . . . . . . . . . . Machines Disabled . | . . . . . . . . . . . . Actions | -11 -10 -9 -9 -8 -7 -6 -6 -5 -4 -3 -3 --------- Run | Yrd Mat Mat Min Mat Fac Fac DSF Fac Fac Res Qua Total 7462 | 79 1201 684 345 737 306 17 274 1014 1228 1247 330 Wait 1726 | . 234 91 29 119 19 . . 209 438 549 38 Move 4551 | 56 809 437 283 514 190 6 198 667 625 590 176 Hop . | . . . . . . . . . . . . Pick Up 202 | 10 24 26 5 21 13 . 18 25 27 18 15 Fast Attach 44 | 3 5 6 . 4 5 . 5 4 8 4 . Attach 89 | 4 4 14 . 4 7 5 3 5 16 7 20 Detach 16 | . 1 5 . 3 3 3 . . 1 . . Swap 133 | . 23 18 7 15 12 2 13 14 11 14 4 Drop 186 | . 19 20 7 25 17 1 21 30 32 12 2 Fire 508 | 6 82 67 14 30 39 . 16 60 69 52 73 Melee 2 | . . . . 2 . . . . . . . Ram 2 | . . . . . . . . . . . 2 Kick . | . . . . . . . . . . . . Crush 2 | . . . . . . . . . 1 1 . Escape Stasis 1 | . . . . . 1 . . . . . . Rewire . | . . . . . . . . . . . . Trap . | . . . . . . . . . . . . Miscellaneous . | . . . . . . . . . . . . Route ------- -11/Scrapyard -10/Materials (discovered 4 exits: *Mat x3 / [*Min]) -9/Materials (discovered 2 exits: *Min x2) -9/Mines -8/Materials -7/Factory -6/Factory -6/DSF -5/Factory (discovered 2 exits: *Fac x2) -4/Factory -3/Research -3/Quarantine History --------- Turn | Location | Event 16 | -11/Scrapyard | Discovered new exit (range 16) 80 | -11/Scrapyard | Entered Materials 393 | -10/Materials | Discovered new exit (range 11) 477 | -10/Materials | Build established: Scavenger-Mutant 690 | -10/Materials | Discovered new exit (range 18) 870 | -10/Materials | Discovered new exit (range 9) 947 | -10/Materials | Discovered new exit (range 9) 1030 | -10/Materials | Core integrity fell below 50% 1060 | -10/Materials | Build established: Mutant 1496 | -10/Materials | Entered another Materials area 1496 | -9/Materials | Evolved 2 slots: Propulsion x1, Utility x1 1949 | -9/Materials | Core integrity fell below 50% 1977 | -9/Materials | Lost 6 parts (1p1n2u2w) 2329 | -9/Materials | Discovered new exit (range 9) 2399 | -9/Materials | Discovered new exit (range 6) 2432 | -9/Materials | Entered Mines 2460 | -9/Mines | Received a Rocket Launcher from a helpful Derelict 2548 | -9/Mines | Met a Derelict shopkeep closing up shop 2629 | -9/Mines | Assembled infested the area 2634 | -9/Mines | Assisted by a Guerilla fighting off Assembled 2912 | -9/Mines | Discovered new exit (range 9) 2931 | -9/Mines | Entered Materials 2931 | -8/Materials | Evolved 2 slots: Propulsion x1, Utility x1 3401 | -8/Materials | Discovered new exit (range 15) 3439 | -8/Materials | Entered Factory 3439 | -7/Factory | Evolved 2 slots: Power x1, Utility x1 3522 | -7/Factory | Garrison activated, responded to threat 3561 | -7/Factory | Lost 3 parts (3n) 3826 | -7/Factory | Discovered new exit (range 8) 3839 | -7/Factory | Entered another Factory area 3839 | -6/Factory | Evolved 2 slots: Utility x1, Weapon x1 3859 | -6/Factory | Identified exit to DSF 3859 | -6/Factory | Entered DSF 3876 | -6/DSF | Additional patrols routed to DSF 4030 | -6/DSF | Lost 4 parts (2n2u) 4114 | -6/DSF | Sterilization system engaged 4134 | -6/DSF | Ambient heat levels rising (+10) 4149 | -6/DSF | Ambient heat levels rising (+10) 4164 | -6/DSF | Ambient heat levels rising (+10) 4179 | -6/DSF | Ambient heat levels rising (+10) 4194 | -6/DSF | Ambient heat levels rising (+10) 4209 | -6/DSF | Ambient heat levels rising (+10) 4224 | -6/DSF | Ambient heat levels rising (+10) 4239 | -6/DSF | Ambient heat levels rising (+10) 4254 | -6/DSF | Ambient heat levels rising (+10) 4269 | -6/DSF | Ambient heat levels rising (+10) 4274 | -6/DSF | Discovered new exit (range 15) 4284 | -6/DSF | Ambient heat levels rising (+10) 4299 | -6/DSF | Ambient heat levels rising (+10) 4314 | -6/DSF | Ambient heat levels rising (+10) 4325 | -6/DSF | Entered Factory 4325 | -5/Factory | Evolved 2 slots: Utility x2 4491 | -5/Factory | Build established: Tank 4626 | -5/Factory | Discovered new exit (range 16) 5037 | -5/Factory | Garrison activated, responded to threat 5096 | -5/Factory | Destroyed 8 combat bots 5297 | -5/Factory | Spotted B-75 Beast 5329 | -5/Factory | Destroyed B-75 Beast 5483 | -5/Factory | Discovered new exit (range 37) 5910 | -5/Factory | Entered another Factory area 5910 | -4/Factory | Evolved 2 slots: Utility x1, Weapon x1 7536 | -4/Factory | Discovered new exit (range 9) 7624 | -4/Factory | Repaired Imp. Heavy Armor Plating 7712 | -4/Factory | Identified exit to Research 7713 | -4/Factory | Entered Research 7713 | -3/Research | Evolved 2 slots: Utility x2 7772 | -3/Research | Build established: Scavenger-Tank 8397 | -3/Research | Build established: Hacker-Tank 8725 | -3/Research | Discovered new exit (range 35) 9191 | -3/Research | Identified exit to Quarantine 9213 | -3/Research | First assault squad dispatched 9310 | -3/Research | Garrison activated, responded to threat 9355 | -3/Research | Lost 4 parts (3u1w) 9370 | -3/Research | Destroyed 7 combat bots 9501 | -3/Research | Entered Quarantine 9529 | -3/Quarantine | Found Alien Artifact 9530 | -3/Quarantine | Identified Phase Redirector 9557 | -3/Quarantine | Spotted Alpha 7 9616 | -3/Quarantine | Destroyed Alpha 7 9639 | -3/Quarantine | Found Corrupted Prototype Ballistic Gun 9640 | -3/Quarantine | Identified Multirail 9641 | -3/Quarantine | System corruption reached 10% 9685 | -3/Quarantine | Lost 9 parts (1p2n2u4w) 9734 | -3/Quarantine | Found Alien Impact Weapon 9738 | -3/Quarantine | Identified Core Stripper 9828 | -3/Quarantine | Found Alien Artifact 9829 | -3/Quarantine | Identified Hpw. Transdimensional Reconstructor 9829 | -3/Quarantine | Warped through subspace 9850 | -3/Quarantine | Found Alien Artifact 9851 | -3/Quarantine | Identified Terrabomb 9851 | -3/Quarantine | Used Terrabomb 9853 | -3/Quarantine | Scanned by Researcher 9916 | -3/Quarantine | Build established: Scavenger-Mutant 9927 | -3/Quarantine | Core integrity fell below 50% 9961 | -3/Quarantine | Destroyed 9 combat bots 9969 | -3/Quarantine | Lost 4 parts (2p1n1w) 10001 | -3/Quarantine | First assault squad dispatched 10092 | -3/Quarantine | Core integrity fell below 20% 10094 | -3/Quarantine | Destroyed by G-67 Veteran with Plasma Rifle Last Messages --------------- 10066_ Gamma Rifle severed. 10067_ The unstable cave ceiling collapses. 10071_ Connecting with Door Terminal... >>Open(Door) Sealed Barrier opened. 10075_ Adv. Target Analyzer destroyed. 10077_ Exp. Cooling System destroyed. 10078_ The unstable cave ceiling collapses. 10080_ Centrium Medium Armor Plating destroyed. 10080_ Hvy. Treads destroyed. 10081_ System corrupted: Matter fused (-8). 10081_ M-36 Artificer repairs G-73 Enforcer. 10081_ Adv. Heat Sink destroyed. 10081_ Imp. Quantum Reactor destroyed. 10082_ Hpw. Tractor Beam destroyed. 10084_ M-36 Artificer repairs I-47 Archangel. 10084_ M-36 Artificer repairs G-73 Enforcer. 10088_ Lgt. Antimatter Reactor destroyed. 10091_ M-36 Artificer repairs G-67 Veteran. 10092_ The unstable cave ceiling collapses. Map ----- +----------------------------------------------------+ | | | | | | | | | | | | | | | ?????????????????????????????????????????????????? | | ?????????????????????????????????????????????????? | | ?????????????????????????????????????????????????? | | ?????????????????????????????????????????????????? | | ?????????????????????????????????????????????????? | | ?????????????????????????????????????????????????? | | ?????????????????????????????????????????????????? | | ?????????????????????????????????????????????????? | | ???????????????###+#?????????????????????????????? | | ???????????????# ????????????????????????????? | | ???????????????# #????????????##??????????????? | | ?????????????### #?????####### ###????????????? | | ?????????????? #???### ??#???????? | | ???????????????# #?###;;;; ;;;;;??"#####? | | ???????????????# ###;;;i;; ? # + | | #########+###### #; "";; ;; # """ " " # | | ;; g "m;; ;"" " """ # | | ;;ggl"";; ; """ T | | ;m bl@;;; " != """ # [ | | ;; Tg;;;; # * | | ##+############# ;m """ =! [ " | | # # ; g"" # [ | | # # "[ # # | | # + # ! # # # | | """"" # """ """ | | """"" # """ === =""" | | " + """ # =%!| | | """ # ! | | # """ # # """ | | #+###### """ %" # | | ? ?????# """ # # """ * | | ? ?????# # """ % # | | ? ????#####+##" ^ ^# # """" =! # | | ? ????# " # # """" # | | ? ????# "" " # # """ " | | # #???# """ # % %# # """" # | | # #???# " # # # """"" # # ## | | # #???# """ + # " """ " #%## # | | # #???# "" # # " """" # | | # #???# # # "? """"""" | | # #???# # #??""""""##"""" # " """ | | #???# # #????? ? # " "T" | | #???########## #??????? ? # ! " ?? | +----------------------------------------------------+ Best States ------------- Heat Dissipation 141 Coolant Potential 80 Energy Generation 47 Energy Capacity 1140 Matter Stores 300 Matter Capacity 300 Sight Range 18 Robot Scan Range 16 Terrain Scan Density 10 Additional Mass Support 9 Armor Coverage 2400 Resistance: KI 20 Resistance: TH 25 Evasion (%) 63 Targeting Accuracy 6 Target Analysis 12 Armor Integrity Analysis 40 Recoil Reduction 4 Kinecelleration 40 Offensive Hacking 14 Defensive Hacking 10 Item Schematics ----------------- Xenon Bombardment Thruster | -8/Materials | Scanalyzed Reactive Plating | -8/Materials | Scanalyzed Exp. Coolant Injector | -3/Quarantine | Archive Enh. Biometal Leg | -3/Quarantine | Archive Neutron Missile Launcher | -3/Quarantine | Archive Hvy. Wave Gun | -3/Quarantine | Archive Adv. EM Disruption Field | -3/Quarantine | Archive Hvy. Tesla Rifle | -3/Quarantine | Archive Robot Schematics ------------------ M-36 Artificer | -3/Quarantine | Archive P-80 Master | -3/Quarantine | Archive Fabricated ------------ Nothing Repaired ---------- Imp. Heavy Armor Plating | 9% | -4/Factory Alien Tech Used ----------------- Phase Redirector Core Stripper High-powered Transdimensional Reconstructor Terrabomb Achievements -------------- Alien Tech Dangerous Findings Subspace Traveler Turtlemind Use The Force Challenges ------------ None Game ------ Seed SchematicMediumMachine Manual? 0 Play Time 02:52:15 Cumulative 52.4 hours Start 2025.05.20 @ 14:22:09 End 2025.05.20 @ 17:17:05 Sessions 1 Manual Loads 0 Difficulty Rogue Special Mode None Game No. 34 Rogue 34 Adventurer 0 Explorer 0 Win Type - Total 0 Types 0/0/0/0/0/0/0/0/0/0 Lore% 40 Gallery% 35 Achievement% 31 Wizard Run 0 Options --------- Layout 1 ASCII 0 Keyboard 0 Movement Mouse Keybinds 0 Fullscreen 1 Font 24/Smallcaps Map View 50x35 Zoom Use 0% Tactical HUD 1 Map Filters NONE Filters NONE Steam 1 RUN: 912c55b8-72da-4c27-bdd5-1b01f29f84cf